fUST/lending_fUST_20250314
["ID","MTS","AMOUNT","RATE_DAILY","PERIOD"]
[356091125,1741894248661,-6281.11,0.00013972,2]
[356091126,1741894248671,-2180.55,0.00013972,2]
[356091127,1741894248681,-500.0,0.00013972,2]
[356091128,1741894248690,-469.75809661,0.00013972,2]
[356091129,1741894248700,-500.0,0.00013972,2]
[356091130,1741894248709,-500.0,0.00013972,2]
[356091131,1741894248720,-500.0,0.00013972,2]
[356091132,1741894248730,-500.0,0.00013972,2]
[356091133,1741894248740,-1225.77,0.00013972,2]
[356091134,1741894248749,-500.0,0.00013972,2]
[356091135,1741894248758,-3824.86,0.00013972,2]
[356091136,1741894248768,-500.0,0.00013972,2]
[356091137,1741894248779,-500.0,0.00013972,2]
[356091138,1741894248788,-500.0,0.00013972,2]
[356091139,1741894248799,-453.3210027,0.00013972,2]
[356091140,1741894248809,-500.0,0.00013972,2]
[356091141,1741894248819,-500.0,0.00013972,2]
[356091142,1741894248829,-500.0,0.00013972,2]
[356091143,1741894248839,-500.0,0.00013972,2]
[356091144,1741894248849,-500.0,0.00013972,2]
[356091145,1741894248859,-500.0,0.00013972,2]
[356091146,1741894248870,-610.74,0.00013972,2]
[356091147,1741894248879,-903.73,0.00013972,2]
[356091148,1741894248889,-500.0,0.00013972,2]
[356091149,1741894248899,-3624.01,0.00013972,2]
[356091150,1741894248908,-500.0,0.00013972,2]
[356091151,1741894248918,-500.0,0.00013972,2]
[356091152,1741894248928,-998.75,0.00013972,2]
[356091153,1741894248938,-500.0,0.00013972,2]
[356091154,1741894248952,-2647.29,0.00013972,2]
[356091155,1741894248961,-10382.85,0.00013972,2]
[356091156,1741894248971,-1110.54,0.00013972,2]
[356091157,1741894248981,-1762.61,0.00013972,2]
[356091158,1741894248991,-1041.84,0.00013972,2]
[356091159,1741894249000,-500.0,0.00013972,2]
[356091160,1741894249010,-565.16,0.00013972,2]
[356091161,1741894249020,-647.43,0.00013972,2]
[356091162,1741894249031,-500.0,0.00013972,2]
[356091163,1741894249041,-500.0,0.00013972,2]
[356091164,1741894249051,-801.16,0.00013972,2]
[356091165,1741894249061,-500.0,0.00013972,2]
[356091166,1741894249070,-521.05739242,0.00013972,2]
[356091167,1741894249080,-606.89,0.00013972,2]
[356091168,1741894249090,-500.0,0.00013972,2]
[356091169,1741894249100,-525.22786692,0.00013972,2]
[356091170,1741894249109,-556.34792247,0.00013972,2]
[356091171,1741894249119,-500.0,0.00013972,2]
[356091172,1741894249129,-500.0,0.00013972,2]
[356091173,1741894249138,-2366.07,0.00013972,2]
[356091174,1741894249149,-500.0,0.00013972,2]
[356091175,1741894249159,-501.23,0.00013972,2]
[356091176,1741894249169,-500.0,0.00013972,2]
[356091177,1741894249180,-500.0,0.00013972,2]
[356091178,1741894249190,-500.0,0.00013972,2]
[356091179,1741894249200,-500.0,0.00013972,2]
[356091180,1741894249210,-2060.16,0.00013972,2]
[356091181,1741894249220,-1000.61,0.00013972,2]
[356091182,1741894249230,-1243.28,0.00013972,2]
[356091183,1741894249240,-500.0,0.00013972,2]
[356091184,1741894249250,-635.67,0.00013972,2]
[356091185,1741894249260,-500.0,0.00013972,2]
[356091186,1741894249270,-1642.03,0.00013972,2]
[356091187,1741894249279,-500.0,0.00013972,2]
[356091188,1741894249289,-1491.71,0.00013972,2]
[356091189,1741894249302,-853.54,0.00013972,2]
[356091190,1741894249312,-500.0,0.00013972,2]
[356091191,1741894249322,-743.31,0.00013972,2]
[356091192,1741894249331,-8475.39,0.00013972,2]
[356091193,1741894249342,-1759.09,0.00013972,2]
[356091194,1741894249352,-1477.61,0.00013972,2]
[356091195,1741894249362,-2198.31,0.00013972,2]
[356091196,1741894249373,-1123.76,0.00013972,2]
[356091197,1741894249382,-500.0,0.00013972,2]
[356091198,1741894249392,-500.0,0.00013972,2]
[356091199,1741894249402,-500.0,0.00013972,2]
[356091200,1741894249410,-732.57,0.00013972,2]
[356091201,1741894249420,-1157.73,0.00013972,2]
[356091202,1741894249430,-500.0,0.00013972,2]
[356091203,1741894249440,-1043.48,0.00013972,2]
[356091204,1741894249450,-500.0,0.00013972,2]
[356091205,1741894249459,-500.0,0.00013972,2]
[356091206,1741894249468,-500.0,0.00013972,2]
[356091207,1741894249478,-8458.86,0.00013972,2]
[356091208,1741894249488,-500.0,0.00013972,2]
[356091209,1741894249498,-500.0,0.00013973,2]
[356091210,1741894249508,-500.0,0.00013973,2]
[356091211,1741894249517,-500.0,0.00013973,2]
[356091212,1741894249527,-500.0,0.00013973,2]
[356091213,1741894249536,-500.0,0.00013973,2]
[356091214,1741894249545,-500.0,0.00013973,2]
[356091215,1741894249555,-500.0,0.00013973,2]
[356091216,1741894249564,-500.0,0.00013973,2]
[356091217,1741894249575,-500.0,0.00013973,2]
[356091218,1741894249584,-500.0,0.00013973,2]
[356091219,1741894249594,-500.0,0.00013973,2]
[356091220,1741894249603,-500.0,0.00013973,2]
[356091221,1741894249613,-500.0,0.00013973,2]
[356091222,1741894249622,-160.68424674,0.00013973,2]
[356091223,1741894249631,-500.0,0.00013973,2]
[356091224,1741894249640,-500.0,0.00013973,2]
[356091225,1741894249649,-464.64648418,0.00013973,2]
[356091226,1741894249660,-500.0,0.00013973,2]
[356091227,1741894249670,-500.0,0.00013973,2]
[356091228,1741894249679,-524.7654576,0.00013973,2]
[356091229,1741894249688,-260.82333664,0.00013973,2]
[356091230,1741894249698,-612.1006448,0.00013973,2]
[356091231,1741894249708,-151.1057776,0.00013973,2]
[356091232,1741894249717,-500.0,0.00013973,2]
[356091233,1741894249727,-500.0,0.00013973,2]
[356091234,1741894249736,-500.0,0.00013973,2]
[356091235,1741894249746,-500.0,0.00013973,2]
[356091236,1741894249755,-500.0,0.00013973,2]
[356091237,1741894249765,-500.0,0.00013973,2]
[356091238,1741894249775,-370.10352599,0.00013973,2]
[356091239,1741894249784,-347.80314197,0.00013973,2]
[356091240,1741894249793,-500.0,0.00013973,2]
[356091241,1741894249803,-500.0,0.00013973,2]
[356091242,1741894249812,-501.70508786,0.00013973,2]
[356091243,1741894249822,-500.0,0.00013973,2]
[356091244,1741894249831,-220.92926663,0.00013973,2]
[356091245,1741894249840,-500.0,0.00013973,2]
[356091246,1741894249849,-500.0,0.00013973,2]
[356091247,1741894249859,-433.33883091,0.00013973,2]
[356091248,1741894249868,-500.0,0.00013973,2]
[356091249,1741894249877,-500.0,0.00013973,2]
[356091250,1741894249887,-500.0,0.00013973,2]
[356091251,1741894249896,-500.0,0.00013973,2]
[356091252,1741894249906,-500.0,0.00013973,2]
[356091253,1741894249915,-500.0,0.00013973,2]
[356091254,1741894249925,-505.98231858,0.00013973,2]
[356091255,1741894249934,-500.0,0.00013973,2]
[356091256,1741894249943,-501.36835336,0.00013973,2]
[356091257,1741894249953,-500.0,0.00013973,2]
[356091258,1741894249962,-500.0,0.00013973,2]
[356091259,1741894249972,-500.0,0.00013973,2]
[356091260,1741894249981,-500.0,0.00013973,2]
[356091261,1741894249991,-251.25368775,0.00013973,2]
[356091262,1741894250000,-500.0,0.00013973,2]
[356091263,1741894250010,-500.0,0.00013973,2]
[356091264,1741894250021,-500.0,0.00013973,2]
[356091265,1741894250030,-500.0,0.00013973,2]
[356091266,1741894250040,-500.0,0.00013973,2]
[356091267,1741894250049,-500.0,0.00013973,2]
[356091268,1741894250059,-500.0,0.00013973,2]
[356091269,1741894250068,-500.0,0.00013973,2]
[356091270,1741894250078,-500.0,0.00013973,2]
[356091271,1741894250087,-507.85115674,0.00013973,2]
[356091272,1741894250096,-336.68959493,0.00013973,2]
[356091273,1741894250105,-160.89862372,0.00013973,2]
[356091274,1741894250114,-164.28617089,0.00013973,2]
[356091275,1741894250123,-158.72147137,0.00013973,2]
[356091276,1741894250132,-500.0,0.00013973,2]
[356091277,1741894250141,-3000.0,0.00013973,2]
[356091278,1741894250150,-184.76743283,0.00013973,2]
[356091279,1741894250160,-166.29068954,0.00013973,2]
[356091280,1741894250169,-184.76743283,0.00013973,2]
[356091281,1741894250178,-184.76743283,0.00013973,2]
[356091282,1741894250188,-151.0,0.00013973,2]
[356091283,1741894250196,-169.999599,0.00013973,2]
[356091284,1741894250206,-169.999599,0.00013973,2]
[356091285,1741894250215,-719.52358209,0.00013974,2]
[356091286,1741894250224,-632.70664721,0.00013999,2]
[356091287,1741894250234,-368.989232,0.00014,2]
[356091288,1741894250243,-368.989232,0.00014,2]
[356091289,1741894250253,-876.08,0.00014,2]
[356091290,1741894250261,-463.399468,0.00014,2]
[356091291,1741894250270,-463.399468,0.00014,2]
[356091292,1741894250280,-151.0,0.00014,2]
[356091293,1741894250289,-49349.93902076,0.00014,2]
[356091294,1741894250301,-192.0,0.00014025,2]
[356091295,1741894250310,-746.14595463,0.00014029,2]
[356091296,1741894250319,-3222.62102824,0.0001406,2]
[356091297,1741894250329,-1616.0,0.00014073,2]
[356091298,1741894250339,-500.0,0.00014073,2]
[356091299,1741894250348,-773.75335495,0.00014084,2]
[356091300,1741894250358,-802.38222908,0.00014139,2]
[356091301,1741894250366,-184.76743283,0.00014164,2]
[356091302,1741894250377,-166.29068954,0.00014164,2]
[356091303,1741894250387,-184.76743283,0.00014164,2]
[356091304,1741894250396,-184.76743283,0.00014164,2]
[356091305,1741894250405,-1024.47641536,0.00014177,2]
[356091306,1741894250414,-832.07037156,0.00014194,2]
[356091307,1741894250423,-1616.0,0.0001421,2]
[356091308,1741894250432,-500.0,0.0001421,2]
[356091309,1741894250442,-156.587,0.00014238,2]
[356091310,1741894250452,-368.989232,0.00014246,2]
[356091311,1741894250462,-368.989232,0.00014246,2]
[356091312,1741894250471,-368.989232,0.00014246,2]
[356091313,1741894250480,-368.989235,0.00014246,2]
[356091314,1741894250490,-500.0,0.00014246,2]
[356091315,1741894250499,-500.0,0.00014246,2]
[356091316,1741894250508,-252.82340272,0.00014246,2]
[356091317,1741894250516,-500.0,0.00014246,2]
[356091318,1741894250526,-500.0,0.00014246,2]
[356091319,1741894250535,-500.0,0.00014246,2]
[356091320,1741894250544,-954.95,0.00014246,2]
[356091321,1741894250554,-500.0,0.00014246,2]
[356091322,1741894250563,-500.0,0.00014246,2]
[356091323,1741894250572,-551.83087853,0.00014246,2]
[356091324,1741894250582,-500.0,0.00014246,2]
[356091325,1741894250591,-198.55497705,0.00014246,2]
[356091326,1741894250600,-500.0,0.00014246,2]
[356091327,1741894250610,-500.0,0.00014246,2]
[356091328,1741894250619,-500.0,0.00014246,2]
[356091329,1741894250628,-500.0,0.00014246,2]
[356091330,1741894250637,-514.86531919,0.00014246,2]
[356091331,1741894250646,-500.0,0.00014246,2]
[356091332,1741894250655,-500.0,0.00014246,2]
[356091333,1741894250664,-523.99337062,0.00014246,2]
[356091334,1741894250674,-500.0,0.00014246,2]
[356091335,1741894250683,-500.0,0.00014246,2]
[356091336,1741894250692,-562.36868855,0.00014246,2]
[356091337,1741894250701,-587.19,0.00014246,2]
[356091338,1741894250710,-500.0,0.00014246,2]
[356091339,1741894250719,-500.0,0.00014246,2]
[356091340,1741894250729,-500.0,0.00014246,2]
[356091341,1741894250739,-500.0,0.00014246,2]
[356091342,1741894250749,-500.0,0.00014246,2]
[356091343,1741894250758,-328.30633929,0.00014246,2]
[356091344,1741894250767,-520.42444089,0.00014246,2]
[356091345,1741894250918,-522.08432829,0.00014246,2]
[356091346,1741894250929,-500.0,0.00014246,2]
[356091347,1741894250938,-500.0,0.00014246,2]
[356091348,1741894250947,-500.0,0.00014246,2]
[356091349,1741894250957,-500.0,0.00014246,2]
[356091350,1741894250966,-500.0,0.00014246,2]
[356091351,1741894250975,-500.0,0.00014246,2]
[356091352,1741894250985,-607.50371494,0.00014246,2]
[356091353,1741894250994,-500.0,0.00014246,2]
[356091354,1741894251004,-500.0,0.00014246,2]
[356091355,1741894251012,-500.0,0.00014246,2]
[356091356,1741894251022,-523.30119005,0.00014246,2]
[356091357,1741894251032,-500.0,0.00014246,2]
[356091358,1741894251041,-500.0,0.00014246,2]
[356091359,1741894251050,-500.0,0.00014246,2]
[356091360,1741894251059,-328.09190825,0.00014246,2]
[356091361,1741894251068,-500.0,0.00014246,2]
[356091362,1741894251078,-500.0,0.00014246,2]
[356091363,1741894251086,-500.0,0.00014246,2]
[356091364,1741894251095,-500.0,0.00014246,2]
[356091365,1741894251105,-500.0,0.00014246,2]
[356091366,1741894251114,-500.0,0.00014246,2]
[356091367,1741894251123,-500.0,0.00014246,2]
[356091368,1741894251132,-497.08338036,0.00014246,2]
[356091369,1741894251141,-500.0,0.00014246,2]
[356091370,1741894251150,-500.0,0.00014246,2]
[356091371,1741894251160,-511.93427204,0.00014246,2]
[356091372,1741894251169,-500.0,0.00014246,2]
[356091373,1741894251179,-534.33966288,0.00014246,2]
[356091374,1741894251188,-500.0,0.00014246,2]
[356091375,1741894251197,-500.0,0.00014246,2]
[356091376,1741894251207,-500.0,0.00014246,2]
[356091377,1741894251216,-409.67160634,0.00014246,2]
[356091378,1741894251225,-500.0,0.00014246,2]
[356091379,1741894251235,-500.0,0.00014246,2]
[356091380,1741894251244,-500.0,0.00014246,2]
[356091381,1741894251252,-151.0,0.00014246,2]
[356091382,1741894251262,-500.0,0.00014246,2]
[356091383,1741894251271,-537.57324937,0.00014246,2]
[356091384,1741894251279,-500.0,0.00014246,2]
[356091385,1741894251290,-500.0,0.00014246,2]
[356091386,1741894251304,-500.0,0.00014246,2]
[356091387,1741894251313,-463.399468,0.00014246,2]
[356091388,1741894251324,-463.399468,0.00014246,2]
[356091389,1741894251333,-500.0,0.00014246,2]
[356091390,1741894251343,-500.0,0.00014246,2]
[356091391,1741894251353,-463.399468,0.00014246,2]
[356091392,1741894251362,-463.399474,0.00014246,2]
[356091393,1741894251373,-320.2552929,0.00014246,2]
[356091394,1741894251382,-500.0,0.00014246,2]
[356091395,1741894251392,-151.0,0.00014246,2]
[356091396,1741894251401,-500.0,0.00014246,2]
[356091397,1741894251411,-500.0,0.00014246,2]
[356091398,1741894251420,-500.0,0.00014246,2]
[356091399,1741894251436,-500.0,0.00014246,2]
[356091400,1741894251446,-500.0,0.00014246,2]
[356091401,1741894251455,-500.0,0.00014246,2]
[356091402,1741894251466,-500.0,0.00014246,2]
[356091403,1741894251475,-500.0,0.00014246,2]
[356091404,1741894251484,-500.0,0.00014246,2]
[356091405,1741894251495,-793.48,0.00014246,2]
[356091406,1741894251504,-500.0,0.00014246,2]
[356091407,1741894251514,-500.0,0.00014246,2]
[356091408,1741894251523,-500.0,0.00014246,2]
[356091409,1741894251533,-500.0,0.00014246,2]
[356091410,1741894251542,-500.0,0.00014246,2]
[356091411,1741894251551,-276.70163442,0.00014246,2]
[356091412,1741894251562,-500.0,0.00014246,2]
[356091413,1741894251585,-1322.9,0.00014246,2]
[356091414,1741894251596,-500.0,0.00014246,2]
[356091415,1741894251606,-500.0,0.00014246,2]
[356091416,1741894251616,-500.0,0.00014246,2]
[356091417,1741894251626,-846.12,0.00014246,2]
[356091418,1741894251637,-500.0,0.00014246,2]
[356091419,1741894251647,-500.0,0.00014246,2]
[356091420,1741894251657,-500.0,0.00014246,2]
[356091421,1741894251667,-500.0,0.00014246,2]
[356091422,1741894251677,-500.0,0.00014246,2]
[356091423,1741894251687,-500.0,0.00014246,2]
[356091424,1741894251697,-500.0,0.00014246,2]
[356091425,1741894251707,-563.56,0.00014246,2]
[356091426,1741894251717,-545.65712249,0.00014246,2]
[356091427,1741894251727,-500.0,0.00014246,2]
[356091428,1741894251737,-500.0,0.00014246,2]
[356091429,1741894251747,-500.0,0.00014246,2]
[356091430,1741894251757,-500.0,0.00014246,2]
[356091431,1741894251767,-500.0,0.00014246,2]
[356091432,1741894251778,-500.0,0.00014246,2]
[356091433,1741894251788,-500.0,0.00014246,2]
[356091434,1741894251797,-500.0,0.00014246,2]
[356091435,1741894251808,-500.0,0.00014246,2]
[356091436,1741894251818,-500.0,0.00014246,2]
[356091437,1741894251830,-500.0,0.00014246,2]
[356091438,1741894251840,-500.0,0.00014246,2]
[356091439,1741894251851,-500.0,0.00014246,2]
[356091440,1741894251861,-500.0,0.00014246,2]
[356091441,1741894251871,-778.09,0.00014246,2]
[356091442,1741894251881,-500.0,0.00014246,2]
[356091443,1741894251891,-534.46166486,0.00014246,2]
[356091444,1741894251901,-521.01,0.00014246,2]
[356091445,1741894251911,-476.98298526,0.00014246,2]
[356091446,1741894251921,-500.0,0.00014246,2]
[356091447,1741894251931,-602.63384516,0.00014246,2]
[356091448,1741894251941,-500.0,0.00014246,2]
[356091449,1741894251950,-500.0,0.00014246,2]
[356091450,1741894251960,-500.0,0.00014246,2]
[356091451,1741894251970,-511.02088603,0.00014246,2]
[356091452,1741894251980,-500.0,0.00014246,2]
[356091453,1741894251991,-576.39147441,0.00014246,2]
[356091454,1741894252001,-500.0,0.00014246,2]
[356091455,1741894252011,-500.0,0.00014246,2]
[356091456,1741894252021,-500.0,0.00014246,2]
[356091457,1741894252031,-500.0,0.00014246,2]
[356091458,1741894252042,-500.0,0.00014246,2]
[356091459,1741894252052,-459.58851788,0.00014246,2]
[356091460,1741894252062,-500.0,0.00014246,2]
[356091461,1741894252072,-500.0,0.00014246,2]
[356091462,1741894252083,-500.0,0.00014246,2]
[356091463,1741894252093,-500.0,0.00014246,2]
[356091464,1741894252103,-500.0,0.00014246,2]
[356091465,1741894252114,-500.0,0.00014246,2]
[356091466,1741894252124,-500.0,0.00014246,2]
[356091467,1741894252133,-500.0,0.00014246,2]
[356091468,1741894252143,-500.0,0.00014246,2]
[356091469,1741894252153,-500.0,0.00014246,2]
[356091470,1741894252162,-500.0,0.00014246,2]
[356091471,1741894252172,-500.0,0.00014246,2]
[356091472,1741894252182,-945.54,0.00014246,2]
[356091473,1741894252191,-1251.04,0.00014246,2]
[356091474,1741894252201,-500.0,0.00014246,2]
[356091475,1741894252211,-500.0,0.00014246,2]
[356091476,1741894252221,-575.08115366,0.00014246,2]
[356091477,1741894252231,-500.0,0.00014246,2]
[356091478,1741894252241,-1614.53,0.00014246,2]
[356091479,1741894252252,-500.0,0.00014246,2]
[356091480,1741894252263,-500.0,0.00014246,2]
[356091481,1741894252272,-500.0,0.00014246,2]
[356091482,1741894252282,-500.0,0.00014246,2]
[356091483,1741894252292,-1390.01,0.00014246,2]
[356091484,1741894252306,-746.51,0.00014246,2]
[356091485,1741894252316,-500.0,0.00014246,2]
[356091486,1741894252326,-500.0,0.00014246,2]
[356091487,1741894252335,-500.0,0.00014246,2]
[356091488,1741894252347,-500.0,0.00014246,2]
[356091489,1741894252356,-500.0,0.00014246,2]
[356091490,1741894252366,-500.0,0.00014246,2]
[356091491,1741894252376,-834.06,0.00014246,2]
[356091492,1741894252386,-718.11,0.00014246,2]
[356091493,1741894252396,-500.0,0.00014246,2]
[356091494,1741894252405,-839.92,0.00014246,2]
[356091495,1741894252415,-500.0,0.00014246,2]
[356091496,1741894252424,-500.0,0.00014246,2]
[356091497,1741894252433,-575.00010932,0.00014246,2]
[356091498,1741894252443,-500.0,0.00014246,2]
[356091499,1741894252452,-500.0,0.00014246,2]
[356091500,1741894252461,-500.0,0.00014246,2]
[356091501,1741894252472,-500.0,0.00014246,2]
[356091502,1741894252482,-500.0,0.00014246,2]
[356091503,1741894252491,-151.0,0.00014246,2]
[356091504,1741894252500,-500.0,0.00014246,2]
[356091505,1741894252510,-500.0,0.00014246,2]
[356091506,1741894252519,-151.0,0.00014246,2]
[356091507,1741894252529,-500.0,0.00014246,2]
[356091508,1741894252538,-600.24052264,0.00014246,2]
[356091509,1741894252548,-500.0,0.00014246,2]
[356091510,1741894252558,-500.0,0.00014246,2]
[356091511,1741894252568,-500.0,0.00014246,2]
[356091512,1741894252581,-500.0,0.00014246,2]
[356091513,1741894252591,-500.0,0.00014246,2]
[356091514,1741894252600,-500.0,0.00014246,2]
[356091515,1741894252610,-500.0,0.00014246,2]
[356091516,1741894252619,-500.0,0.00014246,2]
[356091517,1741894252629,-500.0,0.00014246,2]
[356091518,1741894252645,-1030.56,0.00014246,2]
[356091519,1741894252655,-558.71216247,0.00014246,2]
[356091520,1741894252665,-500.0,0.00014246,2]
[356091521,1741894252675,-1760.49,0.00014246,2]
[356091522,1741894252685,-500.0,0.00014246,2]
[356091523,1741894252695,-500.0,0.00014246,2]
[356091524,1741894252706,-500.0,0.00014246,2]
[356091525,1741894252715,-500.0,0.00014246,2]
[356091526,1741894252725,-500.0,0.00014246,2]
[356091527,1741894252735,-500.0,0.00014246,2]
[356091528,1741894252745,-324.66093183,0.00014246,2]
[356091529,1741894252756,-500.0,0.00014246,2]
[356091530,1741894252767,-500.0,0.00014246,2]
[356091531,1741894252778,-1000.0,0.00014246,2]
[356091532,1741894252789,-1660.28,0.00014246,2]
[356091533,1741894252799,-500.0,0.00014246,2]
[356091534,1741894252809,-500.0,0.00014246,2]
[356091535,1741894252819,-500.0,0.00014246,2]
[356091536,1741894252835,-802.74,0.00014246,2]
[356091537,1741894252845,-500.0,0.00014246,2]
[356091538,1741894252855,-500.0,0.00014246,2]
[356091539,1741894252866,-500.0,0.00014246,2]
[356091540,1741894252876,-500.0,0.00014246,2]
[356091541,1741894252886,-500.0,0.00014246,2]
[356091542,1741894252897,-500.0,0.00014246,2]
[356091543,1741894252907,-500.0,0.00014246,2]
[356091544,1741894252917,-500.0,0.00014246,2]
[356091545,1741894252926,-500.0,0.00014246,2]
[356091546,1741894252936,-500.0,0.00014246,2]
[356091547,1741894252947,-500.0,0.00014246,2]
[356091548,1741894252958,-500.0,0.00014246,2]
[356091549,1741894252968,-500.0,0.00014246,2]
[356091550,1741894252978,-500.0,0.00014246,2]
[356091551,1741894252988,-782.58,0.00014246,2]
[356091552,1741894252998,-1228.1,0.00014246,2]
[356091553,1741894253009,-570.85,0.00014246,2]
[356091554,1741894253019,-500.0,0.00014246,2]
[356091555,1741894253029,-500.0,0.00014246,2]
[356091556,1741894253040,-500.0,0.00014246,2]
[356091557,1741894253050,-500.0,0.00014246,2]
[356091558,1741894253059,-500.0,0.00014246,2]
[356091559,1741894253069,-500.0,0.00014246,2]
[356091560,1741894253081,-500.0,0.00014246,2]
[356091561,1741894253091,-500.0,0.00014246,2]
[356091562,1741894253101,-500.0,0.00014246,2]
[356091563,1741894253110,-163.06,0.00014246,2]
[356091564,1741894253120,-500.0,0.00014246,2]
[356091565,1741894253129,-500.0,0.00014246,2]
[356091566,1741894253139,-500.0,0.00014246,2]
[356091567,1741894253149,-500.0,0.00014246,2]
[356091568,1741894253159,-500.0,0.00014246,2]
[356091569,1741894253169,-500.0,0.00014246,2]
[356091570,1741894253184,-500.0,0.00014246,2]
[356091571,1741894253200,-500.0,0.00014246,2]
[356091572,1741894253213,-500.0,0.00014246,2]
[356091573,1741894253223,-500.0,0.00014246,2]
[356091574,1741894253233,-500.0,0.00014246,2]
[356091575,1741894253243,-500.0,0.00014246,2]
[356091576,1741894253260,-500.0,0.00014246,2]
[356091577,1741894253270,-500.0,0.00014246,2]
[356091578,1741894253462,-500.0,0.00014246,2]
[356091579,1741894253472,-500.0,0.00014246,2]
[356091580,1741894253482,-500.0,0.00014246,2]
[356091581,1741894253493,-1891.38,0.00014246,2]
[356091582,1741894253503,-637.15,0.00014246,2]
[356091583,1741894253512,-500.0,0.00014246,2]
[356091584,1741894253521,-500.0,0.00014246,2]
[356091585,1741894253531,-500.0,0.00014246,2]
[356091586,1741894253540,-726.33,0.00014246,2]
[356091587,1741894253549,-539.52097243,0.00014246,2]
[356091588,1741894253559,-500.0,0.00014246,2]
[356091589,1741894253568,-500.0,0.00014246,2]
[356091590,1741894253579,-500.0,0.00014246,2]
[356091591,1741894253589,-500.0,0.00014246,2]
[356091592,1741894253598,-500.0,0.00014246,2]
[356091593,1741894253607,-500.0,0.00014246,2]
[356091594,1741894253617,-500.0,0.00014246,2]
[356091595,1741894253626,-500.0,0.00014246,2]
[356091596,1741894253636,-500.0,0.00014246,2]
[356091597,1741894253645,-500.0,0.00014246,2]
[356091598,1741894253655,-551.31,0.00014246,2]
[356091599,1741894253667,-500.0,0.00014246,2]
[356091600,1741894253676,-500.0,0.00014246,2]
[356091601,1741894253686,-500.0,0.00014246,2]
[356091602,1741894253697,-500.0,0.00014246,2]
[356091603,1741894253706,-500.0,0.00014246,2]
[356091604,1741894253716,-500.0,0.00014246,2]
[356091605,1741894253726,-500.0,0.00014246,2]
[356091606,1741894253735,-782.32,0.00014246,2]
[356091607,1741894253745,-893.91,0.00014246,2]
[356091608,1741894253755,-860.11,0.00014246,2]
[356091609,1741894253764,-641.6372688,0.00014246,2]
[356091610,1741894253774,-500.0,0.00014246,2]
[356091611,1741894253784,-500.0,0.00014246,2]
[356091612,1741894253793,-500.0,0.00014246,2]
[356091613,1741894253803,-730.06,0.00014246,2]
[356091614,1741894253812,-169.999599,0.00014246,2]
[356091615,1741894253822,-553.47207043,0.00014246,2]
[356091616,1741894253834,-169.999599,0.00014246,2]
[356091617,1741894253843,-500.0,0.00014246,2]
[356091618,1741894253853,-500.0,0.00014246,2]
[356091619,1741894253863,-500.0,0.00014246,2]
[356091620,1741894253872,-500.0,0.00014246,2]
[356091621,1741894253882,-812.19,0.00014246,2]
[356091622,1741894253891,-500.0,0.00014246,2]
[356091623,1741894253901,-500.0,0.00014246,2]
[356091624,1741894253911,-500.0,0.00014246,2]